[Event "Early-Titled-Tuesday-Blitz-July-09-2024"]
[Site "Chess.com"]
[Date "2024.07.09"]
[Round "11"]
[White "Prizant_academy"]
[Black "ChessFighter_2011"]
[Result "0-1"]
[WhiteElo "3027"]
[BlackElo "2973"]
[TimeControl "180+1"]
[EndTime "10:08:23 PDT"]
[Termination "ChessFighter_2011 won by resignation"]

1. d4 {[%clk 0:03:00.9]} 1... Nf6 {[%clk 0:03:00.3]} 2. c4 {[%clk 0:03:00.8]}
2... g6 {[%clk 0:03:00.7]} 3. h4 {[%clk 0:03:00.2]} 3... Bg7 {[%clk 0:02:59.7]}
4. Nc3 {[%clk 0:03:00.6]} 4... d6 {[%clk 0:02:57.9]} 5. e4 {[%clk 0:03:00.7]}
5... Nc6 {[%clk 0:02:38]} 6. d5 {[%clk 0:02:56.8]} 6... Ne5 {[%clk 0:02:38.2]}
7. Be2 {[%clk 0:02:57.5]} 7... h5 {[%clk 0:02:36.5]} 8. Nh3 {[%clk 0:02:47.6]}
8... O-O {[%clk 0:02:32.1]} 9. Ng5 {[%clk 0:02:47.3]} 9... c6 {[%clk 0:02:24.6]}
10. O-O {[%clk 0:02:37.9]} 10... cxd5 {[%clk 0:02:22.8]} 11. cxd5 {[%clk
0:02:38.8]} 11... Bd7 {[%clk 0:02:21.6]} 12. Be3 {[%clk 0:02:37.5]} 12... a6
{[%clk 0:02:20.8]} 13. Rc1 {[%clk 0:02:17.9]} 13... b5 {[%clk 0:02:16.1]} 14. f3
{[%clk 0:02:18.3]} 14... Rc8 {[%clk 0:02:15.3]} 15. Qd2 {[%clk 0:02:14.6]} 15...
b4 {[%clk 0:01:43.8]} 16. Nb1 {[%clk 0:02:11.2]} 16... a5 {[%clk 0:01:40.8]} 17.
Rxc8 {[%clk 0:01:54.8]} 17... Qxc8 {[%clk 0:01:39.3]} 18. Rc1 {[%clk 0:01:55.1]}
18... Qb7 {[%clk 0:01:39.5]} 19. a3 {[%clk 0:01:42.4]} 19... Bb5 {[%clk
0:01:14.3]} 20. axb4 {[%clk 0:01:23.5]} 20... Bxe2 {[%clk 0:01:12.5]} 21. Qxe2
{[%clk 0:01:24.4]} 21... axb4 {[%clk 0:01:12.1]} 22. Nd2 {[%clk 0:01:22]} 22...
Rc8 {[%clk 0:01:09.6]} 23. Qd1 {[%clk 0:00:52]} 23... Nfd7 {[%clk 0:00:59]} 24.
Rxc8+ {[%clk 0:00:49.2]} 24... Qxc8 {[%clk 0:00:59.9]} 25. Qb3 {[%clk
0:00:37.3]} 25... Qc1+ {[%clk 0:00:44.1]} 26. Nf1 {[%clk 0:00:35.5]} 26... Qc4
{[%clk 0:00:43.8]} 27. Qa4 {[%clk 0:00:34.8]} 27... b3 {[%clk 0:00:28.1]} 28.
Qa8+ {[%clk 0:00:33.8]} 28... Nf8 {[%clk 0:00:25.2]} 29. Qe8 {[%clk 0:00:29]}
29... Bf6 {[%clk 0:00:21]} 30. Bf4 {[%clk 0:00:14.6]} 30... Bxg5 {[%clk
0:00:16.7]} 31. Bxg5 {[%clk 0:00:15.5]} 31... f6 {[%clk 0:00:14.1]} 32. Bh6
{[%clk 0:00:14.8]} 32... Qd4+ {[%clk 0:00:07.8]} 33. Kh1 {[%clk 0:00:14.5]}
33... Nd7 {[%clk 0:00:08.4]} 34. Qxe7 {[%clk 0:00:13.6]} 34... f5 {[%clk
0:00:08.9]} 35. exf5 {[%clk 0:00:11]} 35... gxf5 {[%clk 0:00:09.8]} 36. Qxd6
{[%clk 0:00:04.8]} 36... Qxb2 {[%clk 0:00:08.7]} 37. Ng3 {[%clk 0:00:05]} 37...
Qa1+ {[%clk 0:00:06.9]} 38. Kh2 {[%clk 0:00:04.8]} 38... b2 {[%clk 0:00:07.5]}
39. Nxf5 {[%clk 0:00:04.2]} 39... b1=Q {[%clk 0:00:07.7]} 40. Ne7+ {[%clk
0:00:04.3]} 40... Kf7 {[%clk 0:00:08]} 41. Bg5 {[%clk 0:00:01.5]} 41... Qe5+
{[%clk 0:00:07.6]} 42. Qxe5 {[%clk 0:00:01.5]} 42... Nxe5 {[%clk 0:00:08.5]} 43.
d6 {[%clk 0:00:01.6]} 43... Nfg6 {[%clk 0:00:08.6]} 44. Nd5 {[%clk 0:00:01.7]}
44... Qd3 {[%clk 0:00:08.4]} 45. Nf6 {[%clk 0:00:01.5]} 45... Qxd6 {[%clk
0:00:08.5]} 46. Kh3 {[%clk 0:00:01.1]} 46... Qe6+ {[%clk 0:00:08.6]} 47. Kh2
{[%clk 0:00:01.2]} 47... Nd3 {[%clk 0:00:08.6]} 48. Nxh5 {[%clk 0:00:01.4]}
48... Qe5+ {[%clk 0:00:08.5]} 49. Kg1 {[%clk 0:00:01.3]} 49... Qe1+ {[%clk
0:00:08.5]} 50. Kh2 {[%clk 0:00:01.8]} 50... Nxh4 {[%clk 0:00:08.2]} 51. Ng3
{[%clk 0:00:02.4]} 51... Ng6 {[%clk 0:00:06.4]} 52. Ne4 {[%clk 0:00:02.3]} 52...
Ndf4 {[%clk 0:00:06.9]} 53. Nd6+ {[%clk 0:00:02.4]} 53... Ke6 {[%clk 0:00:05.2]}
54. Ne4 {[%clk 0:00:03.3]} 54... Qe2 {[%clk 0:00:05.6]} 55. Bxf4 {[%clk
0:00:01.6]} 55... Nxf4 {[%clk 0:00:06.1]} 56. Kg3 {[%clk 0:00:02.5]} 56... Ke5
{[%clk 0:00:06.5]} 57. Ng5 {[%clk 0:00:01.9]} 57... Qxg2+ {[%clk 0:00:06.7]} 58.
Kh4 {[%clk 0:00:02.7]} 58... Ng6+ {[%clk 0:00:07.4]} 59. Kh5 {[%clk 0:00:03.2]}
59... Kf5 {[%clk 0:00:07.7]} 0-1

[Event "Early-Titled-Tuesday-Blitz-July-09-2024"]
[Site "Chess.com"]
[Date "2024.07.09"]
[Round "11"]
[White "slidingknight2775"]
[Black "Baronessa08"]
[Result "0-1"]
[WhiteElo "2739"]
[BlackElo "2603"]
[TimeControl "180+1"]
[EndTime "10:08:28 PDT"]
[Termination "Baronessa08 won by checkmate"]

1. c4 {[%clk 0:03:00.9]} 1... e6 {[%clk 0:02:59.1]} 2. Nf3 {[%clk 0:03:00.2]}
2... d5 {[%clk 0:02:58.8]} 3. e3 {[%clk 0:03:00.3]} 3... Nf6 {[%clk 0:02:58.6]}
4. b3 {[%clk 0:03:00.7]} 4... c5 {[%clk 0:02:58.7]} 5. Bb2 {[%clk 0:02:59]} 5...
Nc6 {[%clk 0:02:59.2]} 6. cxd5 {[%clk 0:02:46.4]} 6... Nxd5 {[%clk 0:03:00.1]}
7. Nc3 {[%clk 0:02:42.1]} 7... Ndb4 {[%clk 0:02:41.7]} 8. d3 {[%clk 0:02:38.6]}
8... Be7 {[%clk 0:02:39.3]} 9. a3 {[%clk 0:02:37.4]} 9... Na6 {[%clk 0:02:38.2]}
10. Be2 {[%clk 0:02:37]} 10... O-O {[%clk 0:02:37.7]} 11. O-O {[%clk 0:02:37.5]}
11... e5 {[%clk 0:02:36.2]} 12. Rc1 {[%clk 0:02:37.3]} 12... Be6 {[%clk
0:02:26.3]} 13. Nd2 {[%clk 0:02:35.1]} 13... Rc8 {[%clk 0:02:20.4]} 14. Nc4
{[%clk 0:02:31.9]} 14... Nc7 {[%clk 0:02:15.9]} 15. Bf3 {[%clk 0:02:30.5]} 15...
f6 {[%clk 0:02:09.2]} 16. Bxc6 {[%clk 0:02:16.3]} 16... bxc6 {[%clk 0:02:10.1]}
17. Na4 {[%clk 0:02:07.2]} 17... Qd5 {[%clk 0:01:51.5]} 18. e4 {[%clk
0:01:48.7]} 18... Qd7 {[%clk 0:01:51.3]} 19. Na5 {[%clk 0:01:46.5]} 19... Na6
{[%clk 0:01:46.1]} 20. Qe2 {[%clk 0:01:46.5]} 20... Qc7 {[%clk 0:01:33.3]} 21.
Bc3 {[%clk 0:01:38.5]} 21... Rfd8 {[%clk 0:01:29.8]} 22. Rfd1 {[%clk 0:01:21.2]}
22... Rb8 {[%clk 0:01:29.2]} 23. Be1 {[%clk 0:01:13.5]} 23... Rb5 {[%clk
0:01:09.4]} 24. Nc4 {[%clk 0:00:56.6]} 24... Rxb3 {[%clk 0:01:08.3]} 25. Ba5
{[%clk 0:00:55.4]} 25... Qc8 {[%clk 0:01:07.7]} 26. Bxd8 {[%clk 0:00:54.8]}
26... Qxd8 {[%clk 0:00:59.9]} 27. Qc2 {[%clk 0:00:40.6]} 27... Rb5 {[%clk
0:00:53.1]} 28. Nc3 {[%clk 0:00:37.3]} 28... Rb8 {[%clk 0:00:49]} 29. Rb1 {[%clk
0:00:36.1]} 29... Nc7 {[%clk 0:00:40.8]} 30. Rxb8 {[%clk 0:00:34.1]} 30... Qxb8
{[%clk 0:00:41.7]} 31. Rb1 {[%clk 0:00:25.4]} 31... Qd8 {[%clk 0:00:41.4]} 32.
h3 {[%clk 0:00:19.9]} 32... h5 {[%clk 0:00:32.4]} 33. Ne3 {[%clk 0:00:16.7]}
33... c4 {[%clk 0:00:26.2]} 34. Nxc4 {[%clk 0:00:13.4]} 34... Bc5 {[%clk
0:00:24.3]} 35. Ne3 {[%clk 0:00:13.3]} 35... Bxa3 {[%clk 0:00:14.6]} 36. Qa4
{[%clk 0:00:10.8]} 36... Qd6 {[%clk 0:00:09.8]} 37. Rb7 {[%clk 0:00:06.6]} 37...
Bc5 {[%clk 0:00:09.9]} 38. Qc2 {[%clk 0:00:05.6]} 38... h4 {[%clk 0:00:08.8]}
39. Na4 {[%clk 0:00:05.2]} 39... Bd4 {[%clk 0:00:08]} 40. Nb2 {[%clk 0:00:03.9]}
40... Nb5 {[%clk 0:00:07.6]} 41. Nbc4 {[%clk 0:00:03.6]} 41... Qb4 {[%clk
0:00:07.9]} 42. Rb8+ {[%clk 0:00:03.3]} 42... Kh7 {[%clk 0:00:07.5]} 43. Qe2
{[%clk 0:00:03.8]} 43... g6 {[%clk 0:00:05.7]} 44. Ng4 {[%clk 0:00:03.7]} 44...
Kg7 {[%clk 0:00:05.1]} 45. Nge3 {[%clk 0:00:03.4]} 45... Qb1+ {[%clk 0:00:04.8]}
46. Qd1 {[%clk 0:00:02.9]} 46... Qb2 {[%clk 0:00:04.5]} 47. Qf1 {[%clk
0:00:02.1]} 47... Qa2 {[%clk 0:00:03.9]} 48. Rb7+ {[%clk 0:00:02.5]} 48... Kg8
{[%clk 0:00:03.9]} 49. Rb8+ {[%clk 0:00:02.3]} 49... Kf7 {[%clk 0:00:04.1]} 50.
Rb7+ {[%clk 0:00:03.2]} 50... Kg8 {[%clk 0:00:04.3]} 51. Kh1 {[%clk 0:00:03.8]}
51... Nc3 {[%clk 0:00:03.2]} 52. f4 {[%clk 0:00:03.7]} 52... Ne2 {[%clk
0:00:02.9]} 53. Rb8+ {[%clk 0:00:02.5]} 53... Kg7 {[%clk 0:00:02.7]} 54. Rb7+
{[%clk 0:00:03.4]} 54... Kh6 {[%clk 0:00:03.1]} 55. Kh2 {[%clk 0:00:03.5]} 55...
Ng3 {[%clk 0:00:03.4]} 56. Qf3 {[%clk 0:00:03.4]} 56... Bxe3 {[%clk 0:00:03.3]}
57. Nxe3 {[%clk 0:00:03.2]} 57... Qa1 {[%clk 0:00:03.3]} 58. Nf1 {[%clk
0:00:02]} 58... Nxf1+ {[%clk 0:00:03.2]} 59. Kg1 {[%clk 0:00:02.7]} 59... Ng3+
{[%clk 0:00:04.1]} 60. Kf2 {[%clk 0:00:02.4]} 60... Qf1+ {[%clk 0:00:04.1]} 61.
Ke3 {[%clk 0:00:02.8]} 61... Qe1+ {[%clk 0:00:04.3]} 62. Qe2 {[%clk 0:00:02.9]}
62... Qxe2# {[%clk 0:00:04.7]} 0-1

[Event "Early-Titled-Tuesday-Blitz-July-09-2024"]
[Site "Chess.com"]
[Date "2024.07.09"]
[Round "11"]
[White "urano56"]
[Black "nj123456"]
[Result "0-1"]
[WhiteElo "2401"]
[BlackElo "2528"]
[TimeControl "180+1"]
[EndTime "10:08:39 PDT"]
[Termination "nj123456 won by resignation"]

1. e4 {[%clk 0:02:55.9]} 1... c6 {[%clk 0:03:00.1]} 2. d4 {[%clk 0:02:55.5]}
2... d5 {[%clk 0:03:01]} 3. f3 {[%clk 0:02:55.3]} 3... e6 {[%clk 0:03:00]} 4.
Nc3 {[%clk 0:02:54.4]} 4... Nf6 {[%clk 0:02:58]} 5. Bg5 {[%clk 0:02:47.4]} 5...
Bb4 {[%clk 0:02:55.3]} 6. e5 {[%clk 0:02:44.3]} 6... h6 {[%clk 0:02:55.5]} 7.
Bd2 {[%clk 0:02:44.2]} 7... Nfd7 {[%clk 0:02:51.6]} 8. a3 {[%clk 0:02:44.3]}
8... Bxc3 {[%clk 0:02:45.4]} 9. Bxc3 {[%clk 0:02:44.2]} 9... c5 {[%clk
0:02:46.3]} 10. dxc5 {[%clk 0:02:43.4]} 10... Nc6 {[%clk 0:02:41.7]} 11. f4
{[%clk 0:02:40.5]} 11... Nxc5 {[%clk 0:02:39.2]} 12. Qg4 {[%clk 0:02:36.2]}
12... g6 {[%clk 0:02:34.1]} 13. Bd3 {[%clk 0:02:35.1]} 13... h5 {[%clk
0:02:32.5]} 14. Qg3 {[%clk 0:02:32.9]} 14... Nxd3+ {[%clk 0:02:24.5]} 15. cxd3
{[%clk 0:02:24.5]} 15... d4 {[%clk 0:02:24.8]} 16. Bd2 {[%clk 0:02:24.4]} 16...
b6 {[%clk 0:02:19.7]} 17. Nf3 {[%clk 0:02:23.6]} 17... Bb7 {[%clk 0:02:18.4]}
18. Ng5 {[%clk 0:02:23.7]} 18... Ne7 {[%clk 0:01:55.2]} 19. O-O {[%clk
0:02:19.5]} 19... Nf5 {[%clk 0:01:54.5]} 20. Qh3 {[%clk 0:02:12]} 20... Qd7
{[%clk 0:01:40.6]} 21. Ne4 {[%clk 0:02:07.6]} 21... O-O-O {[%clk 0:01:33.6]} 22.
Bb4 {[%clk 0:01:55.7]} 22... Bxe4 {[%clk 0:01:28.3]} 23. dxe4 {[%clk 0:01:54.3]}
23... Ne3 {[%clk 0:01:28]} 24. Bd6 {[%clk 0:01:50]} 24... Nxf1 {[%clk
0:01:14.5]} 25. Qd3 {[%clk 0:01:26.3]} 25... Kb7 {[%clk 0:01:06.8]} 26. Kxf1
{[%clk 0:01:20.6]} 26... Qa4 {[%clk 0:01:03.3]} 27. b4 {[%clk 0:00:43]} 27...
Rc8 {[%clk 0:00:58.6]} 28. Qxd4 {[%clk 0:00:32.8]} 28... Qc2 {[%clk 0:00:57.6]}
29. a4 {[%clk 0:00:28.4]} 29... Rc4 {[%clk 0:00:54.2]} 30. Qf2 {[%clk
0:00:20.5]} 30... Qd3+ {[%clk 0:00:47.7]} 31. Qe2 {[%clk 0:00:20.7]} 31... Qxe2+
{[%clk 0:00:43]} 32. Kxe2 {[%clk 0:00:20.9]} 32... Rxe4+ {[%clk 0:00:43.5]} 33.
Kd3 {[%clk 0:00:21.5]} 33... Rxf4 {[%clk 0:00:43.5]} 34. a5 {[%clk 0:00:20.1]}
34... Rc8 {[%clk 0:00:41.9]} 35. a6+ {[%clk 0:00:20.2]} 35... Kc6 {[%clk
0:00:40.6]} 36. Rc1+ {[%clk 0:00:19.4]} 36... Kd7 {[%clk 0:00:41]} 37. Rd1
{[%clk 0:00:18.3]} 37... Ke8 {[%clk 0:00:36.9]} 38. Ke3 {[%clk 0:00:18.5]} 38...
Rfc4 {[%clk 0:00:36.7]} 39. h3 {[%clk 0:00:16.7]} 39... Rc3+ {[%clk 0:00:35.2]}
40. Kf4 {[%clk 0:00:17]} 40... Rc1 {[%clk 0:00:35.3]} 41. Rd2 {[%clk 0:00:14.4]}
41... b5 {[%clk 0:00:28.5]} 42. Bc5 {[%clk 0:00:13.1]} 42... Ra1 {[%clk
0:00:23.7]} 43. Bxa7 {[%clk 0:00:12.3]} 43... Rxa6 {[%clk 0:00:23.8]} 44. Bc5
{[%clk 0:00:13.2]} 44... Ra3 {[%clk 0:00:21.9]} 45. Rd6 {[%clk 0:00:07.6]} 45...
Rb8 {[%clk 0:00:20.5]} 46. Rc6 {[%clk 0:00:07.5]} 46... Rc3 {[%clk 0:00:17.3]}
47. Rc7 {[%clk 0:00:07.1]} 47... Rd3 {[%clk 0:00:16.4]} 48. Re7+ {[%clk
0:00:06.8]} 48... Kd8 {[%clk 0:00:16.8]} 49. Rxf7 {[%clk 0:00:07.1]} 49... Rd2
{[%clk 0:00:14.4]} 50. g4 {[%clk 0:00:06.9]} 50... hxg4 {[%clk 0:00:14.4]} 51.
hxg4 {[%clk 0:00:07.1]} 51... Rc8 {[%clk 0:00:14]} 52. Kg5 {[%clk 0:00:06.8]}
52... Rg2 {[%clk 0:00:13.4]} 53. Bd6 {[%clk 0:00:04.6]} 53... Rc4 {[%clk
0:00:12.6]} 54. Rb7 {[%clk 0:00:04]} 54... Rgxg4+ {[%clk 0:00:12.1]} 55. Kf6
{[%clk 0:00:04.6]} 55... Rc8 {[%clk 0:00:12]} 56. Kxe6 {[%clk 0:00:04.9]} 56...
Rh4 {[%clk 0:00:11]} 57. Rd7+ {[%clk 0:00:05]} 57... Ke8 {[%clk 0:00:11.1]} 58.
Re7+ {[%clk 0:00:05]} 58... Kd8 {[%clk 0:00:11.6]} 59. Rg7 {[%clk 0:00:03.9]}
59... Rh8 {[%clk 0:00:12.2]} 60. Be7+ {[%clk 0:00:03.9]} 60... Ke8 {[%clk
0:00:11.4]} 61. Bc5 {[%clk 0:00:04.8]} 61... Kd8 {[%clk 0:00:11.1]} 62. Rxg6
{[%clk 0:00:05.4]} 62... Rc6+ {[%clk 0:00:11.1]} 63. Kf5 {[%clk 0:00:05.2]}
63... Rxg6 {[%clk 0:00:10.7]} 64. Kxg6 {[%clk 0:00:04.9]} 64... Kd7 {[%clk
0:00:11.6]} 65. Kf5 {[%clk 0:00:04.8]} 65... Rh5+ {[%clk 0:00:11.8]} 66. Kf6
{[%clk 0:00:04.8]} 66... Rh6+ {[%clk 0:00:11.9]} 67. Kf5 {[%clk 0:00:05.3]}
67... Re6 {[%clk 0:00:12.1]} 68. Bd6 {[%clk 0:00:05.5]} 68... Re8 {[%clk
0:00:12.4]} 69. Bc5 {[%clk 0:00:05.8]} 69... Kc6 {[%clk 0:00:10.3]} 70. Kf6
{[%clk 0:00:05.9]} 70... Kd5 {[%clk 0:00:10.5]} 71. e6 {[%clk 0:00:06.3]} 71...
Rxe6+ {[%clk 0:00:11]} 72. Kf7 {[%clk 0:00:06.9]} 72... Re4 {[%clk 0:00:11.9]}
73. Kf8 {[%clk 0:00:06.4]} 73... Re2 {[%clk 0:00:12.5]} 74. Kf7 {[%clk
0:00:06.9]} 74... Rb2 {[%clk 0:00:13.4]} 75. Be7 {[%clk 0:00:07.4]} 75... Kc4
{[%clk 0:00:14.3]} 76. Ke6 {[%clk 0:00:07.7]} 76... Rxb4 {[%clk 0:00:15.2]} 77.
Bxb4 {[%clk 0:00:07.5]} 77... Kxb4 {[%clk 0:00:15.6]} 78. Kd5 {[%clk 0:00:08.2]}
78... Kc3 {[%clk 0:00:16.3]} 79. Kc5 {[%clk 0:00:08.5]} 79... b4 {[%clk
0:00:17.2]} 80. Kb5 {[%clk 0:00:09.1]} 80... b3 {[%clk 0:00:18.1]} 81. Ka4
{[%clk 0:00:10]} 81... b2 {[%clk 0:00:19]} 82. Ka3 {[%clk 0:00:10.9]} 82... b1=Q
{[%clk 0:00:19.4]} 83. Ka4 {[%clk 0:00:11.8]} 83... Qb6 {[%clk 0:00:19.6]} 0-1

[Event "Early-Titled-Tuesday-Blitz-July-09-2024"]
[Site "Chess.com"]
[Date "2024.07.09"]
[Round "11"]
[White "DenLaz"]
[Black "jumpingknight20"]
[Result "1-0"]
[WhiteElo "3157"]
[BlackElo "2834"]
[TimeControl "180+1"]
[EndTime "10:08:45 PDT"]
[Termination "DenLaz won by resignation"]

1. d4 {[%clk 0:03:00.9]} 1... Nf6 {[%clk 0:02:59.4]} 2. c4 {[%clk 0:03:01.4]}
2... e6 {[%clk 0:02:58.4]} 3. Nf3 {[%clk 0:03:01.9]} 3... d5 {[%clk 0:02:58.5]}
4. g3 {[%clk 0:03:02.4]} 4... Be7 {[%clk 0:02:55.5]} 5. Bg2 {[%clk 0:03:02.8]}
5... O-O {[%clk 0:02:55.7]} 6. O-O {[%clk 0:03:03.4]} 6... dxc4 {[%clk
0:02:56.2]} 7. Qc2 {[%clk 0:03:03.7]} 7... a6 {[%clk 0:02:54.4]} 8. a4 {[%clk
0:03:03.9]} 8... Bd7 {[%clk 0:02:49.5]} 9. Qxc4 {[%clk 0:03:04.3]} 9... Bc6
{[%clk 0:02:49]} 10. Bg5 {[%clk 0:03:04.5]} 10... Nbd7 {[%clk 0:02:46.8]} 11.
Rd1 {[%clk 0:03:03.4]} 11... h6 {[%clk 0:02:38.9]} 12. Bxf6 {[%clk 0:03:03.6]}
12... Nxf6 {[%clk 0:02:39.8]} 13. Nbd2 {[%clk 0:03:04.1]} 13... Rc8 {[%clk
0:02:32.3]} 14. Rac1 {[%clk 0:03:00.8]} 14... a5 {[%clk 0:01:52.3]} 15. Qc2
{[%clk 0:02:56.6]} 15... Bb4 {[%clk 0:01:45.6]} 16. Nc4 {[%clk 0:02:43.5]} 16...
Be4 {[%clk 0:01:41]} 17. Qb3 {[%clk 0:02:43.1]} 17... Qd5 {[%clk 0:01:26.3]} 18.
Ncd2 {[%clk 0:02:15.9]} 18... Qxb3 {[%clk 0:01:25.8]} 19. Nxb3 {[%clk
0:02:15.8]} 19... Bd5 {[%clk 0:01:14.8]} 20. Nbd2 {[%clk 0:02:09.7]} 20... Rfd8
{[%clk 0:01:11.4]} 21. e3 {[%clk 0:01:54.6]} 21... c5 {[%clk 0:01:06.7]} 22.
dxc5 {[%clk 0:01:46.4]} 22... Rxc5 {[%clk 0:01:01]} 23. Rxc5 {[%clk 0:01:24]}
23... Bxc5 {[%clk 0:01:01.9]} 24. Nc4 {[%clk 0:01:15]} 24... b6 {[%clk
0:00:53.7]} 25. Nfe5 {[%clk 0:01:12]} 25... Rc8 {[%clk 0:00:50.3]} 26. Bxd5
{[%clk 0:01:03.5]} 26... Nxd5 {[%clk 0:00:35.8]} 27. b3 {[%clk 0:00:57.6]} 27...
Rc7 {[%clk 0:00:31.9]} 28. Nd3 {[%clk 0:00:54.8]} 28... f5 {[%clk 0:00:28.5]}
29. Kg2 {[%clk 0:00:53.7]} 29... Kf7 {[%clk 0:00:27.6]} 30. Rc1 {[%clk 0:00:52]}
30... Ke7 {[%clk 0:00:26.2]} 31. h3 {[%clk 0:00:51]} 31... g5 {[%clk 0:00:21.8]}
32. Kf3 {[%clk 0:00:40.2]} 32... Nf6 {[%clk 0:00:19.8]} 33. g4 {[%clk
0:00:37.5]} 33... Ne4 {[%clk 0:00:18.8]} 34. Ke2 {[%clk 0:00:32.4]} 34... Kd8
{[%clk 0:00:16.1]} 35. Nce5 {[%clk 0:00:31.1]} 35... Bf8 {[%clk 0:00:14.5]} 36.
Rxc7 {[%clk 0:00:23.9]} 36... Kxc7 {[%clk 0:00:15.4]} 37. f3 {[%clk 0:00:24.6]}
37... Nf6 {[%clk 0:00:13.5]} 38. Nc4 {[%clk 0:00:22.8]} 38... Be7 {[%clk
0:00:09.6]} 39. Nde5 {[%clk 0:00:22.4]} 39... Bf8 {[%clk 0:00:09]} 40. Kd3
{[%clk 0:00:19.1]} 40... Bc5 {[%clk 0:00:08.9]} 41. Nf7 {[%clk 0:00:17.6]} 41...
Bf8 {[%clk 0:00:08.9]} 42. Nfe5 {[%clk 0:00:15.8]} 42... Bc5 {[%clk 0:00:08.7]}
43. e4 {[%clk 0:00:10.9]} 43... fxe4+ {[%clk 0:00:07.8]} 44. fxe4 {[%clk
0:00:11.8]} 44... Bf8 {[%clk 0:00:05.6]} 45. Nd2 {[%clk 0:00:11.6]} 45... Kd6
{[%clk 0:00:03.7]} 46. Kd4 {[%clk 0:00:08.5]} 46... Bg7 {[%clk 0:00:03.1]} 47.
Ndc4+ {[%clk 0:00:08.7]} 47... Kc7 {[%clk 0:00:03.6]} 48. Kd3 {[%clk 0:00:09.2]}
48... Ne8 {[%clk 0:00:03.7]} 49. Nf3 {[%clk 0:00:08]} 49... Nf6 {[%clk
0:00:03.9]} 50. Nd4 {[%clk 0:00:08.5]} 50... Kd7 {[%clk 0:00:02.5]} 51. Nxb6+
{[%clk 0:00:08.9]} 51... Ke7 {[%clk 0:00:02.9]} 52. Nc4 {[%clk 0:00:09.5]} 52...
Nd7 {[%clk 0:00:03.2]} 53. Nc6+ {[%clk 0:00:10.2]} 53... Kf6 {[%clk 0:00:02.8]}
54. N4xa5 {[%clk 0:00:10.9]} 54... Nc5+ {[%clk 0:00:02.7]} 55. Ke3 {[%clk
0:00:11.3]} 55... Kf7 {[%clk 0:00:02.5]} 56. e5 {[%clk 0:00:11.3]} 56... Bf8
{[%clk 0:00:02.2]} 57. Kd4 {[%clk 0:00:11.8]} 57... Ke8 {[%clk 0:00:02.5]} 58.
Kc4 {[%clk 0:00:10.1]} 58... Kd7 {[%clk 0:00:02.5]} 59. Nd4 {[%clk 0:00:10.2]}
59... Ne4 {[%clk 0:00:02.3]} 60. Nac6 {[%clk 0:00:10.6]} 60... Nd2+ {[%clk
0:00:02.1]} 61. Kd3 {[%clk 0:00:11]} 61... Nxb3 {[%clk 0:00:02.4]} 62. Nxb3
{[%clk 0:00:11.6]} 62... Kxc6 {[%clk 0:00:02.9]} 63. Kc4 {[%clk 0:00:12.4]}
63... Ba3 {[%clk 0:00:02.5]} 64. Nd4+ {[%clk 0:00:12.7]} 64... Kd7 {[%clk
0:00:02.9]} 65. a5 {[%clk 0:00:13.4]} 65... Be7 {[%clk 0:00:01.9]} 66. a6 {[%clk
0:00:13.6]} 66... Kc7 {[%clk 0:00:02.3]} 67. Nxe6+ {[%clk 0:00:14.1]} 67... Kb6
{[%clk 0:00:02.7]} 68. Kd5 {[%clk 0:00:14.8]} 68... Kxa6 {[%clk 0:00:02.1]} 69.
Ng7 {[%clk 0:00:15.5]} 69... Kb6 {[%clk 0:00:02.3]} 70. Ke6 {[%clk 0:00:16.1]}
70... Bb4 {[%clk 0:00:03]} 71. Kf7 {[%clk 0:00:16.7]} 71... Kc7 {[%clk
0:00:03.2]} 72. e6 {[%clk 0:00:17.2]} 72... Kd8 {[%clk 0:00:03.8]} 73. Nf5
{[%clk 0:00:17.6]} 73... h5 {[%clk 0:00:04.4]} 74. gxh5 {[%clk 0:00:17.8]} 1-0